bitfinex-derivatives/quotes_SOLF0:USTF0_20250307
["timestamp","ask_amount","ask_price","bid_price","bid_amount"]
[1741373108237,0.05220018,146.85,146.82,6.86002233]
[1741373108434,0.05220018,146.85,146.82,0.04952233]
[1741373108635,25.22526245,146.99,146.82,25.27478478]
[1741373108940,2.6906,146.95,146.85,25.22526245]
[1741373109140,5.4063,146.95,146.86,31.08]
[1741373109340,9.5324,146.94,146.88,6.8078]
[1741373109538,9.5324,146.94,146.86,31.08]
[1741373109841,9.5324,146.94,146.89,0.04687846]
[1741373109842,0.04971104,146.91,146.89,0.04687846]
[1741373110540,0.04971104,146.91,146.9,6.8072]
[1741373113845,1.104e-05,146.91,146.9,37.8872]
[1741373115743,25.22527349,146.91,146.77,31.08]
[1741373115938,33.6519,146.9,146.77,31.08]
[1741373116145,25.22526245,146.88,146.75,3.4477]
[1741373116343,25.22526245,146.85,146.71,1.2877]
[1741373116539,31.08,146.84,146.72,31.08]
[1741373116743,0.04693802,146.79,146.77,0.04593139]
[1741373116938,6.8109,146.82,146.77,0.04593139]
[1741373117137,0.05118215,146.79,146.77,0.04593139]
[1741373117437,31.08,146.8,146.7,57.6800559]
[1741373117637,0.04384127,146.79,146.7,57.6800559]
[1741373117839,235.32,146.8,146.7,57.6800559]
[1741373118038,6.8136,146.77,146.7,57.6800559]
[1741373118342,56.30526245,146.79,146.7,57.6800559]
[1741373118544,6.8128,146.78,146.7,57.6800559]
[1741373118746,0.05043239,146.76,146.73,0.04949081]
[1741373119047,0.05043239,146.76,146.7,26.6000559]
[1741373119241,31.08,146.75,146.64,27.94196245]
[1741373119444,31.08,146.75,146.63,31.08]
[1741373119633,31.08,146.75,146.64,25.22526245]
[1741373120040,0.05241673,146.71,146.68,0.04338602]
[1741373120241,31.08,146.78,146.67,56.30526245]
[1741373120442,0.04460247,146.71,146.69,6.8169]
[1741373120642,31.08,146.78,146.67,56.30526245]
[1741373120843,0.05054056,146.71,146.69,0.04547651]
[1741373121152,0.04427261,146.71,146.64,56.30526245]
[1741373121349,0.04427261,146.71,146.59,200.5382]
[1741373121350,6.8174,146.69,146.59,200.5382]
[1741373121647,6.8174,146.69,146.61,31.08]
[1741373121856,33.6738,146.7,146.61,31.08]
[1741373122639,0.04684165,146.67,146.64,0.04847074]
[1741373123442,0.04684165,146.67,146.55,27.84176245]
[1741373123644,25.22526245,146.68,146.55,27.84176245]
[1741373123645,25.22526245,146.68,146.57,37.9024]
[1741373123848,31.08,146.66,146.57,37.9024]
[1741373124254,31.08,146.66,146.55,27.84176245]
[1741373124745,0.04417315,146.62,146.59,0.04350722]
[1741373125342,31.14417315,146.62,146.59,0.04350722]
[1741373125552,31.14417315,146.62,146.52,31.1]
[1741373125742,5.3932,146.61,146.52,31.1]
[1741373125946,2.7073,146.61,146.52,31.1]
[1741373126551,2.7073,146.61,146.55,6.8232]
[1741373126740,0.05235418,146.58,146.54,25.22526245]
[1741373126942,0.05235418,146.58,146.57,6.8225]
[1741373127146,2.7114,146.67,146.57,56.32526245]
[1741373127556,235.48,146.71,146.6,25.22526245]
[1741373127747,235.48,146.71,146.61,31.1]
[1741373128050,204.38,146.71,146.63,25.22526245]
[1741373128257,0.05116234,146.67,146.65,0.04948529]
[1741373130051,0.05116234,146.67,146.58,36.466]
[1741373130252,33.8114,146.68,146.58,31.1]
[1741373130953,33.8114,146.68,146.61,6.8203]
[1741373131150,33.8114,146.68,146.58,31.1]
[1741373131355,33.8114,146.68,146.59,25.22526245]
[1741373131356,0.05233441,146.66,146.59,25.22526245]
[1741373132249,0.05233441,146.66,146.62,25.22526245]
[1741373132453,2.6015,146.7,146.62,25.22526245]
[1741373132762,0.04670604,146.65,146.62,25.22526245]
[1741373132953,0.04670604,146.65,146.61,2.6268]
[1741373133255,0.04670604,146.65,146.64,6.8192]
[1741373134563,31.1,146.73,146.64,56.32526245]
[1741373135253,2.435,146.73,146.67,25.22526245]
[1741373135459,2.5417,146.75,146.68,31.1]
[1741373135658,31.1,146.8,146.7,25.22526245]
[1741373135965,33.715,146.82,146.73,25.22526245]
[1741373136150,2.615,146.82,146.73,25.22526245]
[1741373136552,2.615,146.82,146.72,31.1]
[1741373136762,9.4259,146.82,146.72,31.1]
[1741373136958,0.04336923,146.78,146.76,0.04835087]
[1741373137462,31.1,146.77,146.66,2.5454]
[1741373137761,2.6916,146.76,146.66,2.5454]
[1741373138450,5.2198,146.76,146.7,0.04448181]
[1741373138655,0.04360372,146.72,146.7,0.04448181]
[1741373143166,0.04360372,146.72,146.7,6.86078181]
[1741373143464,0.04360372,146.72,146.7,0.04448181]
[1741373144869,6.85920372,146.72,146.7,0.04448181]
[1741373145069,0.04360372,146.72,146.7,0.04448181]
[1741373149066,6.816,146.71,146.7,0.04448181]
[1741373149571,0.04360372,146.72,146.7,0.04448181]
[1741373152064,56.34886617,146.72,146.54,191.0]
[1741373152270,2.607,146.71,146.57,25.22526245]
[1741373153072,0.0464815,146.65,146.57,25.22526245]
[1741373153771,6.8196,146.64,146.57,25.22526245]
[1741373153972,2.607,146.71,146.57,25.22526245]
[1741373154171,0.0437742,146.62,146.6,6.8211]
[1741373154471,0.04877743,146.62,146.59,31.08]
[1741373154973,0.04877743,146.62,146.61,6.8206]
[1741373156775,0.04877743,146.62,146.6,25.22526245]
[1741373157076,6.86927743,146.62,146.59,31.08]
[1741373157276,0.04877743,146.62,146.59,31.08]
[1741373158465,0.04877743,146.62,146.61,6.8206]
[1741373158876,0.04877743,146.62,146.6,25.22526245]
[1741373159075,0.04877743,146.62,146.59,31.08]
[1741373160277,2.5181,146.7,146.6,25.22526245]
[1741373160576,2.5181,146.7,146.61,31.08]
[1741373161276,2.5181,146.7,146.57,25.22526245]
[1741373161479,0.04872642,146.67,146.64,0.05065236]
[1741373162974,6.8188,146.65,146.64,0.05065236]
[1741373163875,0.04872642,146.67,146.64,0.05065236]
[1741373164875,101.58109955,146.79,146.65,50.4505249]
[1741373165079,101.58109955,146.79,146.73,6.8148]
[1741373165280,101.58109955,146.79,146.71,56.28526245]
[1741373165574,101.58109955,146.79,146.71,31.06]
[1741373165780,6.815,146.74,146.68,31.06]
[1741373165982,0.04795293,146.76,146.72,6.8155]
[1741373166181,101.58109955,146.79,146.7,25.27534961]
[1741373166383,5.882e-05,146.75,146.72,25.22526245]
[1741373166685,119.02499863,146.85,146.73,31.06]
[1741373166892,119.02499863,146.85,146.78,25.22526245]
[1741373167183,119.02499863,146.85,146.81,25.22526245]
[1741373167385,119.02499863,146.85,146.79,31.06]
[1741373167885,0.05040567,146.83,146.81,25.26922665]
[1741373168380,0.05040567,146.83,146.82,6.8109]
[1741373168581,119.02499863,146.85,146.81,25.26922665]
[1741373168781,119.02499863,146.85,146.84,25.22526245]
[1741373168981,111.27139369,146.86,146.85,6.8095]
[1741373169183,122.88696282,146.87,146.84,56.28526245]
[1741373169383,120.02076282,146.87,146.84,56.28526245]
[1741373169585,120.07231457,146.87,146.84,56.33134916]
[1741373169787,0.05155175,146.87,146.84,56.33134916]
[1741373170079,0.05155175,146.87,146.86,6.809]
[1741373170280,0.05155175,146.87,146.84,25.27134916]
[1741373170480,0.05155175,146.87,146.85,31.04]
[1741373170885,0.05155175,146.87,146.84,0.04608671]
[1741373171489,6.809,146.86,146.84,0.04608671]
[1741373171786,0.05155175,146.87,146.84,0.04608671]
[1741373172581,6.8095,146.85,146.84,0.04608671]
[1741373173191,6.809,146.86,146.84,0.04608671]
[1741373173482,0.05155175,146.87,146.84,0.04608671]
[1741373173683,6.86025175,146.87,146.84,0.04608671]
[1741373174683,6.809,146.86,146.84,0.04608671]
[1741373174880,0.05155175,146.87,146.84,0.04608671]
[1741373175287,0.05155175,146.87,146.79,31.04]
[1741373175481,41.01285839,146.88,146.79,31.04]
[1741373175791,41.01285839,146.88,146.78,31.04]
[1741373176096,41.01285839,146.88,146.75,41.01285839]
[1741373176393,0.05166816,146.83,146.8,0.04406918]
[1741373176593,0.05166816,146.83,146.76,31.02]
[1741373176594,5.7801,146.84,146.76,31.02]
[1741373176791,0.05222389,146.83,146.8,0.04475469]
[1741373178386,0.05222389,146.83,146.75,31.02]
[1741373179395,0.05222389,146.83,146.78,0.0458699]
[1741373180493,6.8109,146.82,146.78,0.0458699]
[1741373180788,0.05222389,146.83,146.78,0.0458699]
[1741373181688,0.05222389,146.83,146.79,31.02]
[1741373182597,0.05222389,146.83,146.82,6.8109]
[1741373182987,2.389e-05,146.83,146.82,6.8109]
[1741373183494,2.389e-05,146.83,146.82,10.2109]
[1741373184000,2.389e-05,146.83,146.82,6.8109]
[1741373184301,2.389e-05,146.83,146.82,10.2109]
[1741373184599,2.389e-05,146.83,146.82,6.8109]
[1741373186192,2.389e-05,146.83,146.81,37.85724416]
[1741373186397,2.389e-05,146.83,146.81,31.04604416]
[1741373186796,2.389e-05,146.83,146.82,6.8109]
[1741373187097,2.796,146.91,146.81,31.04604416]
[1741373187098,6.8079,146.89,146.81,31.04604416]
[1741373187298,2.796,146.91,146.85,6.8095]
[1741373187598,6.8085,146.88,146.85,31.0]
[1741373187795,2.796,146.91,146.85,31.0]
[1741373187997,2.796,146.91,146.87,6.8085]
[1741373188198,0.04685551,146.89,146.87,0.04560819]
[1741373188499,0.04685551,146.89,146.88,6.8081]
[1741373189193,0.04685551,146.89,146.87,0.04560819]
[1741373190194,0.04685551,146.89,146.88,6.8081]
[1741373191903,33.86770319,146.95,146.94,6.8053]
[1741373191904,5.6699,146.95,146.94,6.8053]
[1741373192501,6.8037,146.98,146.94,6.8053]
[1741373192906,25.23620319,146.97,146.91,31.0]
[1741373193100,25.28779362,146.97,146.95,0.04620802]
[1741373193502,0.05159043,146.97,146.95,0.04620802]
[1741373193999,6.85579043,146.97,146.95,0.04620802]
[1741373194203,0.05159043,146.97,146.95,0.04620802]
[1741373195196,6.8044,146.96,146.95,0.04620802]
[1741373195596,25.28779362,146.97,146.84,25.23620319]
[1741373195805,56.21620319,146.97,146.88,6.8077]
[1741373196000,25.23620319,146.94,146.85,30.98]
[1741373196196,6.8068,146.91,146.87,6.8083]
[1741373196397,25.23620319,146.94,146.86,30.98]
[1741373196594,2.8099,146.9,146.8,35.9919131]
[1741373196794,2.8099,146.9,146.81,30.98]
[1741373197001,2.8099,146.9,146.84,0.04965125]
[1741373197304,0.04805138,146.87,146.84,0.04965125]
[1741373197805,6.8093,146.86,146.84,0.04965125]
[1741373198007,0.04805138,146.87,146.84,0.04965125]
[1741373198198,0.04805138,146.87,146.8,30.98]
[1741373198400,25.23620319,146.88,146.8,30.98]
[1741373198599,25.23620319,146.85,146.8,30.98]
[1741373198800,2.9454,146.84,146.77,39.96177272]
[1741373199098,6.8112,146.82,146.77,46.77457272]
[1741373199301,6.85779894,146.82,146.79,0.05113201]
[1741373199797,0.04659894,146.82,146.79,0.05113201]
[1741373200102,6.8118,146.8,146.79,0.05113201]
[1741373200607,0.04659894,146.82,146.79,0.05113201]
[1741373201500,6.8114,146.81,146.79,0.05113201]
[1741373201706,3.0393,146.81,146.79,0.05113201]
[1741373202512,0.04659894,146.82,146.79,0.05113201]
[1741373202703,0.04659894,146.82,146.79,31.03113201]
[1741373203203,0.04659894,146.82,146.8,6.8114]
[1741373203501,0.04659894,146.82,146.79,31.03113201]
[1741373203903,0.04659894,146.82,146.8,6.8118]
[1741373204702,0.04659894,146.82,146.79,31.03113201]
[1741373205601,0.04659894,146.82,146.8,6.8115]
[1741373205907,0.04659894,146.82,146.79,31.03113201]
[1741373206796,0.04659894,146.82,146.8,6.8118]
[1741373207007,0.04659894,146.82,146.79,31.03113201]
[1741373207206,0.04659894,146.82,146.74,35.9919131]
[1741373207404,25.23620319,146.8,146.74,35.9919131]
[1741373207602,3.0397,146.79,146.74,26.7771131]
[1741373208314,0.04329054,146.78,146.75,0.04488029]
[1741373208903,6.8137,146.76,146.75,0.04488029]
[1741373209210,0.04329054,146.78,146.75,0.04488029]
[1741373209609,6.8137,146.76,146.75,0.04488029]
[1741373209814,0.04329054,146.78,146.75,0.04488029]
[1741373211410,0.04329054,146.78,146.75,6.85868029]
[1741373211712,0.04329054,146.78,146.75,0.04488029]
[1741373211918,0.04329054,146.78,146.77,6.8132]
[1741373212307,0.04329054,146.78,146.76,30.98]
[1741373212505,0.04329054,146.78,146.77,6.8132]
[1741373212803,0.04329054,146.78,146.76,30.98]
[1741373213812,0.04329054,146.78,146.77,6.8132]
[1741373214108,0.04329054,146.78,146.76,30.98]
[1741373214299,0.04329054,146.78,146.76,37.7935]
[1741373214613,0.04329054,146.78,146.76,30.98]
[1741373215512,0.04329054,146.78,146.76,37.7934]
[1741373215905,0.04329054,146.78,146.76,30.98]
[1741373217215,2.7903,146.85,146.76,56.21620319]
[1741373217814,2.8382,146.86,146.79,25.23620319]
[1741373218013,2.8479,146.9,146.82,25.23620319]
[1741373218419,0.04352455,146.87,146.85,0.0481448]
[1741373220622,2.9203,146.95,146.85,0.0481448]
[1741373220809,2.9069,146.96,146.87,25.23620319]
[1741373221014,2.9069,146.96,146.88,30.96]
[1741373221216,6.8058,146.93,146.89,6.8075]
[1741373221522,2.9069,146.96,146.88,30.96]
[1741373221817,6.8062,146.92,146.91,0.04327236]
[1741373222207,0.04523749,146.93,146.81,235.49450319]
[1741373222409,25.23620319,146.94,146.82,30.96]
[1741373223516,0.04398545,146.89,146.87,0.0451931]
[1741373223718,25.23620319,146.94,146.87,0.0451931]
[1741373224019,6.8081,146.88,146.87,0.0451931]
[1741373224513,25.23620319,146.94,146.87,0.0451931]
[1741373224914,0.04312158,146.92,146.87,0.0451931]
[1741373225308,0.04312158,146.92,146.87,25.28139629]
[1741373225514,6.8068,146.91,146.88,6.8078]
[1741373225710,0.04312158,146.92,146.87,0.0451931]
[1741373226616,6.8077,146.89,146.87,0.0451931]
[1741373226821,0.04312158,146.92,146.87,0.0451931]
[1741373227213,6.8081,146.88,146.87,0.0451931]
[1741373227820,0.0470351,146.89,146.87,0.0451931]
[1741373228723,6.8081,146.88,146.87,0.0451931]
[1741373229528,0.0470351,146.89,146.87,30.9851931]
[1741373230433,6.8081,146.88,146.87,0.0451931]
[1741373230828,0.0470351,146.89,146.87,0.0451931]
[1741373232524,0.0470351,146.89,146.88,30.94]
[1741373232726,3.51e-05,146.89,146.88,37.7481]
[1741373233119,2.9824,146.99,146.88,34.34]
[1741373233326,5.8735,147.02,146.91,25.23620319]
[1741373233630,5.8735,147.02,146.92,30.92]
[1741373234440,0.04684409,146.98,146.96,0.04973499]
[1741373234643,0.04684409,146.98,146.9,30.92]
[1741373234841,6.8052,146.95,146.9,37.7267]
[1741373235141,30.92,147.0,146.9,30.92]
[1741373235344,25.23620319,146.98,146.9,30.92]
[1741373235844,0.04452906,146.95,146.93,0.05199189]
[1741373236839,0.04452906,146.95,146.94,30.92]
[1741373237234,2.9694,147.02,146.94,30.92]
[1741373238337,0.04569367,146.99,146.97,0.05163886]
[1741373239033,6.8035,146.98,146.97,0.05163886]
[1741373239235,0.04569367,146.99,146.97,0.05163886]
[1741373240743,0.04569367,146.99,146.97,6.85513886]
[1741373241040,0.04569367,146.99,146.97,0.05163886]
[1741373243042,0.04569367,146.99,146.97,6.85543886]
[1741373244135,0.04569367,146.99,146.98,6.8035]
[1741373244542,0.04569367,146.99,146.97,0.05163886]
[1741373244738,0.04569367,146.99,146.97,6.85533886]
[1741373245245,0.04569367,146.99,146.97,0.05163886]
[1741373245851,0.04569367,146.99,146.97,6.85553886]
[1741373246047,0.04569367,146.99,146.97,0.05163886]
[1741373248549,0.04569367,146.99,146.98,6.8035]
[1741373249147,0.04569367,146.99,146.97,0.05163886]
[1741373251054,0.04569367,146.99,146.98,6.8035]
[1741373251548,0.04569367,146.99,146.97,0.05163886]
[1741373252255,0.04569367,146.99,146.98,6.8035]
[1741373252847,0.04569367,146.99,146.97,6.85533886]
[1741373253052,0.04569367,146.99,146.97,0.05163886]
[1741373253450,0.04569367,146.99,146.98,6.8035]
[1741373254149,25.23620319,147.05,146.97,0.05163886]
[1741373254351,32.03670319,147.05,146.97,0.05163886]
[1741373254547,25.23620319,147.05,146.97,0.05163886]
[1741373254950,262.2705748,147.18,146.97,0.05163886]
[1741373255252,2.8968,147.17,147.05,25.23620319]
[1741373255444,2.8968,147.17,147.08,25.23620319]
[1741373255649,186.98229047,147.23,147.11,25.23620319]
[1741373255850,186.98229047,147.23,147.14,25.23620319]
[1741373256354,217.86229047,147.23,147.13,33.7735]
[1741373256654,6.84089152,147.2,147.17,0.04962028]
[1741373256958,0.04749152,147.2,147.17,0.04962028]
[1741373258252,6.7942,147.18,147.17,0.04962028]
[1741373258646,0.04749152,147.2,147.1,25.23620319]
[1741373258647,2.898,147.19,147.1,30.86]
[1741373259153,186.98229047,147.23,147.13,25.23620319]
[1741373259349,186.98229047,147.23,147.14,30.84]
[1741373259550,33.758,147.24,147.14,30.84]
[1741373259750,0.04463323,147.2,147.18,0.05137935]
[1741373260054,0.04463323,147.2,147.14,30.84]
[1741373260858,0.04463323,147.2,147.18,6.7938]
[1741373261056,0.04463323,147.2,147.19,56.07620319]
[1741373261357,2.898,147.3,147.19,56.07620319]
[1741373262054,6.7893,147.29,147.19,56.07620319]
[1741373262247,2.898,147.3,147.19,56.07620319]
[1741373262447,0.04497865,147.25,147.23,0.04576206]
[1741373262748,2.8513,147.32,147.24,30.84]
[1741373263256,0.04568085,147.29,147.27,0.0501564]
[1741373264155,0.04568085,147.29,147.28,30.82]
[1741373264453,0.04568085,147.29,147.27,0.0501564]
[1741373265460,0.04568085,147.29,147.22,30.82]
[1741373265752,25.23620319,147.25,147.14,26.967578]
[1741373265949,36.8347,147.24,147.14,26.967578]
[1741373266463,25.23620319,147.22,147.14,26.967578]
[1741373266649,0.04535977,147.2,147.18,0.04543947]
[1741373267367,6.83875977,147.2,147.18,0.04543947]
[1741373267660,0.04535977,147.2,147.18,0.04543947]
[1741373268257,210.7097,147.28,147.22,6.7924]
[1741373268450,5.8219,147.32,147.21,30.82]
[1741373268655,5.8219,147.32,147.22,25.23620319]
[1741373269063,5.8219,147.32,147.23,6.7918]
[1741373269251,5.8219,147.32,147.21,30.82]
[1741373269552,6.7901,147.27,147.26,0.04624891]
[1741373270055,3.4,147.27,147.15,5.8905]
[1741373270253,25.23620319,147.24,147.12,30.82]
[1741373270457,5.8095,147.23,147.14,25.23620319]
[1741373270650,2.7969,147.23,147.14,40.83561548]
[1741373271058,0.04641632,147.2,147.18,6.7942]
[1741373271259,0.04641632,147.2,147.17,71.68439694]
[1741373271453,33.5969,147.29,147.2,40.83561548]
[1741373272158,6.7929,147.21,147.18,2.9437]
[1741373272564,0.0494233,147.21,147.18,0.05006515]
[1741373273669,40.83561548,147.27,147.18,0.05006515]
[1741373273862,40.83561548,147.27,147.16,30.8]
[1741373274860,40.83561548,147.27,147.2,0.04973811]
[1741373274861,6.7925,147.22,147.2,0.04973811]
[1741373275060,0.0514825,147.23,147.2,0.04973811]
[1741373276362,0.0514825,147.23,147.2,30.84973811]
[1741373276764,0.0514825,147.23,147.22,6.7924]
[1741373277062,0.75562029,147.33,147.22,40.83561548]
[1741373277266,6.7883,147.31,147.22,40.83561548]
[1741373277659,0.75562029,147.33,147.25,40.83561548]
[1741373277863,6.7885,147.31,147.27,6.7899]
[1741373278262,0.04432545,147.3,147.28,0.04292898]
[1741373278569,0.04432545,147.3,147.29,6.7891]
[1741373278764,0.75562029,147.33,147.28,0.04292898]
[1741373278972,0.75562029,147.33,147.28,40.87854446]
[1741373279566,6.7855,147.37,147.33,6.787]
[1741373279767,0.05195549,147.36,147.31,71.61561548]
[1741373279965,0.05195549,147.36,147.34,0.04746308]
[1741373280465,0.05195549,147.36,147.35,30.78]
[1741373280662,244.63561548,147.49,147.35,30.78]
[1741373280867,8.6383,147.47,147.37,40.83561548]
[1741373281272,8.6383,147.47,147.36,6.7859]
[1741373281477,8.6383,147.47,147.35,30.78]
[1741373281774,6.7818,147.45,147.37,40.83561548]
[1741373281977,0.04489626,147.42,147.4,0.04995645]
[1741373282170,0.04489626,147.42,147.4,30.82995645]
[1741373282368,30.78,147.5,147.4,30.82995645]
[1741373282369,203.8,147.55,147.4,30.82995645]
[1741373282573,30.78,147.53,147.4,71.61561548]
[1741373282874,30.78,147.53,147.35,6.7864]
[1741373282875,40.83561548,147.46,147.35,6.7864]
[1741373283178,39.619,147.45,147.34,30.78]
[1741373283374,40.83561548,147.43,147.34,30.78]
[1741373283766,0.05104208,147.41,147.38,0.04315258]
[1741373285570,6.7841,147.4,147.38,0.04315258]
[1741373285877,30.81104208,147.41,147.31,43.83841548]
[1741373286176,40.83561548,147.37,147.28,30.76]
[1741373286369,30.76,147.36,147.25,71.59561548]
[1741373286572,40.83561548,147.34,147.23,35.82607004]
[1741373287173,6.7896,147.28,147.27,0.04439783]
[1741373287670,6.7914,147.24,147.23,35.82607004]
[1741373287877,46.51369389,147.3,147.23,35.82607004]
[1741373287878,5.67807841,147.3,147.23,35.82607004]
[1741373288079,30.76,147.29,147.23,35.82607004]
[1741373288271,71.59561548,147.29,147.23,35.82607004]
[1741373288779,0.04453912,147.27,147.25,0.05165705]
[1741373288980,71.59561548,147.29,147.14,35.82607004]
[1741373289672,6.7914,147.25,147.17,6.7946]
[1741373289870,71.59561548,147.29,147.14,35.82607004]
[1741373290073,0.04636597,147.22,147.19,0.0439819]
[1741373290274,30.76,147.29,147.2,30.76]
[1741373290474,0.04373337,147.22,147.2,30.76]
[1741373290682,30.76,147.29,147.2,30.76]
[1741373291174,0.0433302,147.26,147.23,0.05104864]
[1741373291376,30.76,147.25,147.16,40.83561548]
[1741373292377,30.76,147.25,147.2,6.793]
[1741373292685,0.04664535,147.22,147.19,0.04692493]
[1741373292878,37.5497,147.28,147.21,6.7925]
[1741373293178,0.0496154,147.22,147.19,71.63847422]
[1741373293382,0.04471158,147.22,147.19,30.80439128]
[1741373293977,0.04471158,147.22,147.21,6.7928]
[1741373294272,0.04471158,147.22,147.19,71.64000676]
[1741373294475,0.04471158,147.22,147.19,0.04439128]
[1741373294885,0.04471158,147.22,147.13,40.83561548]
[1741373295080,0.04471158,147.22,147.11,30.76]
[1741373295383,40.83561548,147.23,147.12,6.7969]
[1741373295579,3.0657,147.22,147.12,6.7969]
[1741373295780,3.0657,147.22,147.1,30.76]
[1741373296284,0.04945666,147.17,147.15,0.04906649]
[1741373296483,30.76,147.19,147.15,0.04906649]
[1741373296679,0.04440817,147.17,147.15,0.04906649]
[1741373296982,0.04440817,147.17,147.1,30.76]
[1741373298082,0.04440817,147.17,147.12,40.88580365]
[1741373298774,0.04440817,147.17,147.15,40.83561548]
[1741373299089,0.04440817,147.17,147.16,6.7951]
[1741373299587,0.04440817,147.17,147.15,71.64137703]
[1741373299789,0.04440817,147.17,147.15,30.80576155]
[1741373300474,0.04440817,147.17,147.15,71.64137703]
[1741373300687,0.04440817,147.17,147.16,6.7951]
[1741373301184,0.04440817,147.17,147.15,30.80576155]
[1741373301389,0.04440817,147.17,147.15,0.04576155]
[1741373301693,6.83920817,147.17,147.15,0.04576155]
[1741373301985,0.04440817,147.17,147.15,0.04576155]
[1741373303587,6.7954,147.16,147.11,6.7973]
[1741373303887,0.04440817,147.17,147.11,6.7973]
[1741373304089,0.04440817,147.17,147.15,6.7956]
[1741373304282,0.04440817,147.17,147.09,71.59561548]
[1741373304483,0.04440817,147.17,147.09,30.76]
[1741373304684,6.796,147.15,147.12,0.04674355]
[1741373304889,0.04440817,147.17,147.12,0.04674355]
[1741373307386,0.04440817,147.17,147.16,6.7951]
[1741373307791,244.73561548,147.31,147.16,40.83561548]
[1741373307987,2.954,147.27,147.15,30.76]
[1741373308192,2.954,147.27,147.16,40.83561548]
[1741373308495,30.76,147.26,147.16,40.83561548]
[1741373308790,33.6997,147.26,147.15,30.76]
[1741373308990,0.04970239,147.22,147.2,0.04382487]
[1741373309588,6.7928,147.21,147.2,0.04382487]
[1741373309793,0.04970239,147.22,147.15,30.76]
[1741373309993,30.80970239,147.22,147.12,30.76]
[1741373310193,30.76,147.22,147.12,37.5568]
[1741373310385,30.76,147.22,147.12,30.76]
[1741373311095,6.83808793,147.18,147.16,0.04843075]
[1741373311293,0.04368793,147.18,147.16,0.04843075]
[1741373311688,0.04368793,147.18,147.17,6.7947]
[1741373312691,0.04368793,147.18,147.16,0.04843075]
[1741373312896,0.04368793,147.18,147.16,6.84343075]
[1741373313193,0.04368793,147.18,147.16,0.04843075]
[1741373313994,0.04368793,147.18,147.16,6.84343075]
[1741373314194,0.04368793,147.18,147.16,0.04843075]
[1741373315498,193.0,147.46,147.17,71.59561548]
[1741373315794,8.6322,147.41,147.28,40.83561548]
[1741373315996,5.6885,147.41,147.32,40.83561548]
[1741373316188,5.6885,147.41,147.35,40.83561548]
[1741373316385,2.8002,147.41,147.36,6.7858]
[1741373316593,0.04321482,147.39,147.37,30.79081145]
[1741373316794,0.04321482,147.39,147.37,0.05081145]
[1741373317186,40.8788303,147.39,147.26,40.83561548]
[1741373317384,6.7855,147.37,147.28,6.7895]
[1741373317583,36.6462,147.36,147.24,30.74]
[1741373318095,77.48181548,147.36,147.24,30.74]
[1741373318297,0.04777677,147.31,147.29,0.04985573]
[1741373318497,30.74,147.32,147.29,0.04985573]
[1741373318689,0.04413354,147.31,147.29,0.04985573]
[1741373320490,0.04413354,147.31,147.21,40.83561548]
[1741373320690,30.74,147.32,147.21,40.83561548]
[1741373321097,30.74,147.35,147.21,40.83561548]
[1741373321299,30.74,147.35,147.24,40.83561548]
[1741373321493,0.04571635,147.31,147.28,0.03639501]
[1741373321993,0.04571635,147.31,147.29,30.74]
[1741373322195,2.8596,147.41,147.3,40.83561548]
[1741373322392,2.8596,147.41,147.3,43.83071548]
[1741373322793,5.7115,147.41,147.3,43.83071548]
[1741373322993,5.7115,147.41,147.33,40.83561548]
[1741373323193,5.7115,147.41,147.36,0.05004313]
[1741373323490,0.044516,147.38,147.36,0.05004313]
[1741373324399,0.044516,147.38,147.36,6.83594313]
[1741373324599,0.044516,147.38,147.36,0.05004313]
[1741373325499,0.044516,147.38,147.36,6.83564313]
[1741373325706,40.83561548,147.51,147.36,40.88565861]
[1741373325896,71.55561548,147.51,147.37,2.8171]
[1741373326093,71.55561548,147.51,147.38,30.72]
[1741373326295,6.78,147.49,147.4,6.7837]
[1741373326497,30.72,147.51,147.39,40.83561548]
[1741373326690,30.72,147.51,147.44,0.04562956]
[1741373327197,0.04768275,147.49,147.44,0.04562956]
[1741373327800,6.7808,147.48,147.44,0.04562956]
[1741373328001,0.04768275,147.49,147.44,0.04562956]
[1741373328191,30.72,147.47,147.37,30.72]
[1741373328400,6.7831,147.43,147.37,30.72]
[1741373328605,5.547,147.46,147.37,30.72]
[1741373329304,0.05178273,147.43,147.4,0.04531742]
[1741373330705,6.7836,147.41,147.34,30.7]